fUST/lending_fUST_20240511
["ID","MTS","AMOUNT","RATE_DAILY","PERIOD"]
[326801017,1715381510139,-152.87482911,0.0007277,120]
[326801018,1715381510149,-197.257994,0.00073252,120]
[326801019,1715381510159,-1412.8469889,0.00073268,120]
[326801020,1715381510177,-602.21,0.00073424,120]
[326801021,1715381510189,-500.0,0.00073424,120]
[326801022,1715381510199,-1165.04,0.00073424,120]
[326801023,1715381510209,-549.89,0.00073424,120]
[326801024,1715381510220,-2148.21,0.00073424,120]
[326801025,1715381510230,-609.89,0.00073424,120]
[326801026,1715381510241,-487.66547832,0.00073424,120]
[326801027,1715381510252,-500.0,0.00073424,120]
[326801028,1715381510263,-541.11,0.00073424,120]
[326801029,1715381510274,-574.68,0.00073424,120]
[326801030,1715381510285,-1271.67,0.00073424,7]
[326801031,1715381510295,-1161.06,0.00073424,120]
[326801032,1715381510305,-500.0,0.00073424,120]
[326801033,1715381510314,-664.96,0.00073424,120]
[326801034,1715381510324,-606.82,0.00073424,120]
[326801035,1715381510334,-2047.19,0.00073424,120]
[326801036,1715381510343,-666.88,0.00073424,120]
[326801037,1715381510353,-2115.98,0.00073424,4]
[326801038,1715381510362,-744.8,0.00073424,120]
[326801039,1715381510372,-671.73,0.00073424,120]
[326801040,1715381510382,-1253.15,0.00073424,120]
[326801041,1715381510391,-2379.45,0.00073424,120]
[326801042,1715381510401,-591.68,0.00073424,120]
[326801043,1715381510411,-576.78,0.00073424,120]
[326801044,1715381510421,-534.42,0.00073424,120]
[326801045,1715381510431,-1078.44,0.00073424,120]
[326801046,1715381510441,-1489.95,0.00073424,120]
[326801047,1715381510451,-500.0,0.00073424,120]
[326801048,1715381510461,-1505.02,0.00073424,120]
[326801049,1715381510470,-821.7,0.00073424,120]
[326801050,1715381510479,-847.21,0.00073424,120]
[326801051,1715381510489,-1744.14,0.00073424,2]
[326801052,1715381510499,-1487.03,0.00073424,120]
[326801053,1715381510508,-2725.02,0.00073424,120]
[326801054,1715381510518,-1524.58,0.00073424,120]
[326801055,1715381510527,-621.58,0.00073424,120]
[326801056,1715381510536,-550.87,0.00073424,120]
[326801057,1715381510545,-670.43,0.00073424,120]
[326801058,1715381510554,-1135.37,0.00073424,120]
[326801059,1715381510563,-515.4,0.00073424,120]
[326801060,1715381510572,-565.96,0.00073424,120]
[326801061,1715381510581,-700.54,0.00073424,120]
[326801062,1715381510590,-571.02,0.00073424,120]
[326801063,1715381510600,-500.0,0.00073424,120]
[326801064,1715381510609,-2668.96,0.00073424,120]
[326801065,1715381510618,-500.0,0.00073424,120]
[326801066,1715381510627,-820.35,0.00073424,120]
[326801067,1715381510637,-501.21,0.00073424,120]
[326801068,1715381510651,-598.13,0.00073424,120]
[326801069,1715381510660,-967.26,0.00073424,120]
[326801070,1715381510669,-819.54,0.00073424,120]
[326801071,1715381510679,-620.58,0.00073424,120]
[326801072,1715381510688,-594.58,0.00073424,120]
[326801073,1715381510698,-819.92,0.00073424,120]
[326801074,1715381510707,-678.91,0.00073424,120]
[326801075,1715381510718,-610.7,0.00073424,120]
[326801076,1715381510727,-648.3,0.00073424,120]
[326801077,1715381510736,-500.0,0.00073424,120]
[326801078,1715381510745,-873.9,0.00073424,120]
[326801079,1715381510754,-780.28,0.00073424,120]
[326801080,1715381510764,-2756.4,0.00073424,120]
[326801081,1715381510774,-1210.86,0.00073424,120]
[326801082,1715381510783,-1070.89,0.00073424,120]
[326801083,1715381510793,-1070.51,0.00073424,120]
[326801084,1715381510802,-757.61,0.00073424,120]
[326801085,1715381510811,-4210.69,0.00073424,120]
[326801086,1715381510820,-2993.37,0.00073424,120]
[326801087,1715381510829,-551.15,0.00073424,120]
[326801088,1715381510839,-733.98,0.00073424,120]
[326801089,1715381510848,-500.0,0.00073424,120]
[326801090,1715381510857,-4672.91,0.00073424,120]
[326801091,1715381510867,-1818.74,0.00073424,120]
[326801092,1715381510876,-527.33,0.00073424,120]
[326801093,1715381510885,-500.0,0.00073424,120]
[326801094,1715381510894,-500.0,0.00073424,120]
[326801095,1715381510903,-1189.78,0.00073424,120]
[326801096,1715381510912,-580.1,0.00073424,120]
[326801097,1715381510921,-837.42,0.00073424,120]
[326801098,1715381511060,-599.74,0.00073424,120]
[326801099,1715381511071,-1366.53,0.00073424,7]
[326801100,1715381511080,-500.0,0.00073424,120]
[326801101,1715381511090,-549.67,0.00073424,120]
[326801102,1715381511099,-9331.73,0.00073424,120]
[326801103,1715381511108,-638.03,0.00073424,120]
[326801104,1715381511118,-500.0,0.00073424,120]
[326801105,1715381511127,-2272.92,0.00073424,120]
[326801106,1715381511136,-623.13,0.00073424,120]
[326801107,1715381511145,-500.0,0.00073424,120]
[326801108,1715381511154,-1021.55,0.00073424,120]
[326801109,1715381511163,-3952.33,0.00073424,120]
[326801110,1715381511174,-728.64,0.00073424,120]
[326801111,1715381511185,-7667.9,0.00073424,120]
[326801112,1715381511196,-570.68,0.00073424,120]
[326801113,1715381511205,-3673.96,0.00073424,120]
[326801114,1715381511215,-2110.2,0.00073424,120]
[326801115,1715381511227,-8336.17,0.00073424,120]
[326801116,1715381511237,-1410.23,0.00073424,120]
[326801117,1715381511246,-1154.88,0.00073424,120]
[326801118,1715381511256,-8703.16,0.00073424,120]
[326801119,1715381511269,-751.25,0.00073424,120]
[326801120,1715381511279,-536.24,0.00073424,120]
[326801121,1715381511289,-500.0,0.00073424,120]
[326801122,1715381511298,-745.85,0.00073424,120]
[326801123,1715381511308,-1112.7,0.00073424,120]
[326801124,1715381511317,-3156.04,0.00073424,120]
[326801125,1715381511327,-1283.02,0.00073424,120]
[326801126,1715381511336,-1747.91,0.00073424,120]
[326801127,1715381511346,-924.27,0.00073424,120]
[326801128,1715381511355,-585.25,0.00073424,120]
[326801129,1715381511364,-790.87,0.00073424,120]
[326801130,1715381511373,-420.64740957,0.00073424,120]
[326801131,1715381511382,-1269.11,0.00073424,120]
[326801132,1715381511391,-5883.06,0.00073424,120]
[326801133,1715381511401,-1859.96,0.00073424,120]
[326801134,1715381511410,-384.04237431,0.00073424,120]
[326801135,1715381511419,-1701.09,0.00073424,120]
[326801136,1715381511428,-1691.53,0.00073424,120]
[326801137,1715381511437,-632.32,0.00073424,60]
[326801138,1715381511446,-592.96,0.00073424,120]
[326801139,1715381511455,-3991.97,0.00073424,120]
[326801140,1715381511465,-523.35640797,0.00073424,120]
[326801141,1715381511474,-783.68,0.00073424,120]
[326801142,1715381511483,-4891.99,0.00073424,21]
[326801143,1715381511493,-500.0,0.00073424,120]
[326801144,1715381511502,-2531.38,0.00073424,120]
[326801145,1715381511511,-500.0,0.00073424,120]
[326801146,1715381511520,-2025.54,0.00073424,120]
[326801147,1715381511529,-906.96,0.00073424,120]
[326801148,1715381511538,-47405.75,0.00073424,120]
[326801149,1715381511547,-2056.13,0.00073424,120]
[326801150,1715381511556,-643.51,0.00073424,120]
[326801151,1715381511565,-852.8,0.00073424,120]
[326801152,1715381511574,-8527.55,0.00073424,120]
[326801153,1715381511583,-972.54,0.00073424,120]
[326801154,1715381511592,-546.11,0.00073424,120]
[326801155,1715381511601,-3524.89,0.00073424,2]
[326801156,1715381511610,-1320.33,0.00073424,2]
[326801157,1715381511620,-560.85,0.00073424,120]
[326801158,1715381511629,-715.77,0.00073424,120]
[326801159,1715381511638,-728.84,0.00073424,120]
[326801160,1715381511647,-1524.6,0.00073424,120]
[326801161,1715381511656,-2617.66,0.00073424,120]
[326801162,1715381511665,-1552.09,0.00073424,120]
[326801163,1715381511674,-1408.03,0.00073424,120]
[326801164,1715381511683,-709.54,0.00073424,120]
[326801165,1715381511693,-2955.83,0.00073424,120]
[326801166,1715381511702,-500.0,0.00073424,120]
[326801167,1715381511711,-679.75,0.00073424,120]
[326801168,1715381511721,-525.15,0.00073424,120]
[326801169,1715381511731,-671.41,0.00073424,120]
[326801170,1715381511741,-17679.9,0.00073424,120]
[326801171,1715381511751,-1500.0,0.00073424,120]
[326801172,1715381511760,-4314.35,0.00073424,120]
[326801173,1715381511770,-680.13,0.00073424,120]
[326801174,1715381511778,-9229.8,0.00073424,120]
[326801175,1715381511788,-990.56,0.00073424,120]
[326801176,1715381511797,-1953.0,0.00073424,120]
[326801177,1715381511806,-1273.71,0.00073424,120]
[326801178,1715381511816,-510.44,0.00073424,2]
[326801179,1715381511825,-1389.39,0.00073424,120]
[326801180,1715381511834,-300.0,0.00073424,7]
[326801181,1715381511843,-3744.03,0.00073424,120]
[326801182,1715381511853,-1011.1,0.00073424,120]
[326801183,1715381511862,-650.98,0.00073424,120]
[326801184,1715381511871,-151.0,0.00073836,120]
[326801185,1715381511881,-1798.14077635,0.00073923,120]
[326801186,1715381511890,-1412.8469889,0.00073986,120]
[326801187,1715381511899,-71999.999999,0.00074,120]
[326801188,1715381511908,-974.14542008,0.00074042,120]
[326801189,1715381511917,-150.97189535,0.00074136,120]
[326801190,1715381511926,-200.0,0.00074203,120]
[326801191,1715381511935,-166.03447126,0.00074209,120]
[326801192,1715381511944,-1412.8469889,0.00074295,120]
[326801193,1715381511953,-1798.14077635,0.00074319,120]
[326801194,1715381511962,-1798.14077635,0.00074341,120]
[326801195,1715381511971,-602.21,0.0007452,120]
[326801196,1715381511980,-500.0,0.0007452,120]
[326801197,1715381511990,-1165.04,0.0007452,120]
[326801198,1715381511999,-549.89,0.0007452,120]
[326801199,1715381512008,-2148.21,0.0007452,120]
[326801200,1715381512017,-609.89,0.0007452,120]
[326801201,1715381512026,-495.26756756,0.0007452,120]
[326801202,1715381512035,-541.11,0.0007452,120]
[326801203,1715381512044,-574.68,0.0007452,120]
[326801204,1715381512053,-1271.67,0.0007452,7]
[326801205,1715381512063,-1161.06,0.0007452,120]
[326801206,1715381512072,-500.0,0.0007452,120]
[326801207,1715381512081,-664.96,0.0007452,120]
[326801208,1715381512090,-606.82,0.0007452,120]
[326801209,1715381512099,-2047.19,0.0007452,120]
[326801210,1715381512107,-666.88,0.0007452,120]
[326801211,1715381512116,-2115.98,0.0007452,4]
[326801212,1715381512125,-744.8,0.0007452,120]
[326801213,1715381512134,-671.73,0.0007452,120]
[326801214,1715381512142,-1253.15,0.0007452,120]
[326801215,1715381512151,-2379.45,0.0007452,120]
[326801216,1715381512160,-591.68,0.0007452,120]
[326801217,1715381512169,-576.78,0.0007452,120]
[326801218,1715381512183,-534.42,0.0007452,120]
[326801219,1715381512192,-1078.44,0.0007452,120]
[326801220,1715381512201,-1489.95,0.0007452,120]
[326801221,1715381512210,-500.0,0.0007452,120]
[326801222,1715381512220,-1505.02,0.0007452,120]
[326801223,1715381512228,-821.7,0.0007452,120]
[326801224,1715381512238,-847.21,0.0007452,120]
[326801225,1715381512249,-1744.14,0.0007452,2]
[326801226,1715381512263,-1487.03,0.0007452,120]
[326801227,1715381512272,-2725.02,0.0007452,120]
[326801228,1715381512281,-1524.58,0.0007452,120]
[326801229,1715381512291,-621.58,0.0007452,120]
[326801230,1715381512299,-550.87,0.0007452,120]
[326801231,1715381512308,-670.43,0.0007452,120]
[326801232,1715381512317,-1135.37,0.0007452,120]
[326801233,1715381512326,-515.4,0.0007452,120]
[326801234,1715381512335,-565.96,0.0007452,120]
[326801235,1715381512344,-700.54,0.0007452,120]
[326801236,1715381512353,-571.02,0.0007452,120]
[326801237,1715381512362,-500.0,0.0007452,120]
[326801238,1715381512371,-2668.96,0.0007452,120]
[326801239,1715381512379,-500.0,0.0007452,120]
[326801240,1715381512388,-820.35,0.0007452,120]
[326801241,1715381512397,-501.21,0.0007452,120]
[326801242,1715381512406,-598.13,0.0007452,120]
[326801243,1715381512415,-967.26,0.0007452,120]
[326801244,1715381512424,-819.54,0.0007452,120]
[326801245,1715381512433,-620.58,0.0007452,120]
[326801246,1715381512442,-594.58,0.0007452,120]
[326801247,1715381512451,-819.92,0.0007452,120]
[326801248,1715381512460,-678.91,0.0007452,120]
[326801249,1715381512469,-610.7,0.0007452,120]
[326801250,1715381512477,-648.3,0.0007452,120]
[326801251,1715381512488,-516.19231121,0.0007452,120]
[326801252,1715381512497,-873.9,0.0007452,120]
[326801253,1715381512505,-780.28,0.0007452,120]
[326801254,1715381512514,-2756.4,0.0007452,120]
[326801255,1715381512523,-1210.86,0.0007452,120]
[326801256,1715381512532,-1070.89,0.0007452,120]
[326801257,1715381512541,-1070.51,0.0007452,120]
[326801258,1715381512550,-757.61,0.0007452,120]
[326801259,1715381512559,-4210.69,0.0007452,120]
[326801260,1715381512568,-2993.37,0.0007452,120]
[326801261,1715381512577,-551.15,0.0007452,120]
[326801262,1715381512586,-733.98,0.0007452,120]
[326801263,1715381512595,-500.0,0.0007452,120]
[326801264,1715381512604,-4672.91,0.0007452,120]
[326801265,1715381512613,-1818.74,0.0007452,120]
[326801266,1715381512622,-527.33,0.0007452,120]
[326801267,1715381512631,-500.0,0.0007452,120]
[326801268,1715381512640,-500.0,0.0007452,120]
[326801269,1715381512649,-1189.78,0.0007452,120]
[326801270,1715381512659,-580.1,0.0007452,120]
[326801271,1715381512668,-837.42,0.0007452,120]
[326801272,1715381512678,-599.74,0.0007452,120]
[326801273,1715381512687,-1366.53,0.0007452,7]
[326801274,1715381512696,-500.0,0.0007452,120]
[326801275,1715381512705,-549.67,0.0007452,120]
[326801276,1715381512714,-9331.73,0.0007452,120]
[326801277,1715381512723,-638.03,0.0007452,120]
[326801278,1715381512733,-212.69237316,0.0007452,120]
[326801279,1715381512743,-2272.92,0.0007452,120]
[326801280,1715381512752,-623.13,0.0007452,120]
[326801281,1715381512761,-500.0,0.0007452,120]
[326801282,1715381512771,-1021.55,0.0007452,120]
[326801283,1715381512779,-3952.33,0.0007452,120]
[326801284,1715381512788,-728.64,0.0007452,120]
[326801285,1715381512797,-7667.9,0.0007452,120]
[326801286,1715381512806,-570.68,0.0007452,120]
[326801287,1715381512815,-3673.96,0.0007452,120]
[326801288,1715381512824,-2110.2,0.0007452,120]
[326801289,1715381512833,-8336.17,0.0007452,120]
[326801290,1715381512842,-1410.23,0.0007452,120]
[326801291,1715381512851,-1154.88,0.0007452,120]
[326801292,1715381512860,-8703.16,0.0007452,120]
[326801293,1715381512869,-751.25,0.0007452,120]
[326801294,1715381512879,-536.24,0.0007452,120]
[326801295,1715381512888,-565.29044255,0.0007452,120]
[326801296,1715381512898,-745.85,0.0007452,120]
[326801297,1715381512907,-1112.7,0.0007452,120]
[326801298,1715381512917,-3156.04,0.0007452,120]
[326801299,1715381512926,-1283.02,0.0007452,120]
[326801300,1715381512935,-1747.91,0.0007452,120]
[326801301,1715381512944,-924.27,0.0007452,120]
[326801302,1715381512953,-585.25,0.0007452,120]
[326801303,1715381512963,-790.87,0.0007452,120]
[326801304,1715381512973,-1269.11,0.0007452,120]
[326801305,1715381512982,-5883.06,0.0007452,120]
[326801306,1715381512993,-1859.96,0.0007452,120]
[326801307,1715381513003,-1701.09,0.0007452,120]
[326801308,1715381513012,-632.32,0.0007452,60]
[326801309,1715381513021,-1691.53,0.0007452,120]
[326801310,1715381513031,-592.96,0.0007452,120]
[326801311,1715381513040,-3991.97,0.0007452,120]
[326801312,1715381513049,-783.68,0.0007452,120]
[326801313,1715381513059,-4891.99,0.0007452,21]
[326801314,1715381513068,-345.28079401,0.0007452,120]
[326801315,1715381513077,-2531.38,0.0007452,120]
[326801316,1715381513086,-500.0,0.0007452,120]
[326801317,1715381513095,-2025.54,0.0007452,120]
[326801318,1715381513103,-47405.75,0.0007452,120]
[326801319,1715381513112,-2056.13,0.0007452,120]
[326801320,1715381513121,-643.51,0.0007452,120]
[326801321,1715381513131,-906.96,0.0007452,120]
[326801322,1715381513140,-852.8,0.0007452,120]
[326801323,1715381513149,-8527.55,0.0007452,120]
[326801324,1715381513158,-972.54,0.0007452,120]
[326801325,1715381513167,-546.11,0.0007452,120]
[326801326,1715381513178,-3524.89,0.0007452,2]
[326801327,1715381513188,-1320.33,0.0007452,2]
[326801328,1715381513197,-560.85,0.0007452,120]
[326801329,1715381513206,-715.77,0.0007452,120]
[326801330,1715381513215,-728.84,0.0007452,120]
[326801331,1715381513225,-1524.6,0.0007452,120]
[326801332,1715381513234,-2617.66,0.0007452,120]
[326801333,1715381513245,-1552.09,0.0007452,120]
[326801334,1715381513254,-1408.03,0.0007452,120]
[326801335,1715381513264,-709.54,0.0007452,120]
[326801336,1715381513276,-2955.83,0.0007452,120]
[326801337,1715381513286,-500.0,0.0007452,120]
[326801338,1715381513295,-679.75,0.0007452,120]
[326801339,1715381513304,-525.15,0.0007452,120]
[326801340,1715381513314,-671.41,0.0007452,120]
[326801341,1715381513325,-17679.9,0.0007452,120]
[326801342,1715381513335,-1500.0,0.0007452,120]
[326801343,1715381513345,-4314.35,0.0007452,120]
[326801344,1715381513354,-680.13,0.0007452,120]
[326801345,1715381513363,-9229.8,0.0007452,120]
[326801346,1715381513373,-990.56,0.0007452,120]
[326801347,1715381513382,-1953.0,0.0007452,120]
[326801348,1715381513392,-1273.71,0.0007452,120]
[326801349,1715381513402,-1389.39,0.0007452,120]
[326801350,1715381513412,-510.44,0.0007452,2]
[326801351,1715381513423,-300.0,0.0007452,7]
[326801352,1715381513432,-3744.03,0.0007452,120]
[326801353,1715381513441,-1011.1,0.0007452,120]
[326801354,1715381513450,-650.98,0.0007452,120]
[326801355,1715381513460,-1412.8469889,0.00074563,120]
[326801356,1715381513469,-160.0,0.00074634,4]
[326801357,1715381513478,-1798.14077635,0.00074795,120]
[326801358,1715381513487,-557.0,0.00074898,120]
[326801359,1715381513497,-557.0,0.00074898,120]
[326801360,1715381513506,-152.87482911,0.00074901,120]
[326801361,1715381513515,-150.97189535,0.00074915,120]
[326801362,1715381513526,-152.87482911,0.00074917,120]
[326801363,1715381513537,-1998.22345778,0.00075,120]
[326801364,1715381513548,-1798.14077635,0.00075119,120]
[326801365,1715381513558,-602.21,0.00075616,120]
[326801366,1715381513567,-500.0,0.00075616,120]
[326801367,1715381513575,-1165.04,0.00075616,120]
[326801368,1715381513585,-549.89,0.00075616,120]
[326801369,1715381513594,-2148.21,0.00075616,120]
[326801370,1715381513603,-609.89,0.00075616,120]
[326801371,1715381513612,-541.11,0.00075616,120]
[326801372,1715381513621,-574.68,0.00075616,120]
[326801373,1715381513630,-1271.67,0.00075616,7]
[326801374,1715381513640,-1161.06,0.00075616,120]
[326801375,1715381513650,-500.0,0.00075616,120]
[326801376,1715381513659,-664.96,0.00075616,120]
[326801377,1715381513668,-606.82,0.00075616,120]
[326801378,1715381513805,-2047.19,0.00075616,120]
[326801379,1715381513815,-666.88,0.00075616,120]
[326801380,1715381513824,-744.8,0.00075616,120]
[326801381,1715381513834,-2115.98,0.00075616,4]
[326801382,1715381513843,-671.73,0.00075616,120]
[326801383,1715381513852,-1253.15,0.00075616,120]
[326801384,1715381513862,-2379.45,0.00075616,120]
[326801385,1715381513871,-591.68,0.00075616,120]
[326801386,1715381513880,-576.78,0.00075616,120]
[326801387,1715381513889,-534.42,0.00075616,120]
[326801388,1715381513898,-1078.44,0.00075616,120]
[326801389,1715381513908,-1489.95,0.00075616,120]
[326801390,1715381513918,-500.0,0.00075616,120]
[326801391,1715381513927,-1505.02,0.00075616,120]
[326801392,1715381513937,-821.7,0.00075616,120]
[326801393,1715381513946,-847.21,0.00075616,120]
[326801394,1715381513955,-1744.14,0.00075616,2]
[326801395,1715381513964,-1487.03,0.00075616,120]
[326801396,1715381513973,-2725.02,0.00075616,120]
[326801397,1715381513982,-1524.58,0.00075616,120]
[326801398,1715381513992,-621.58,0.00075616,120]
[326801399,1715381514001,-550.87,0.00075616,120]
[326801400,1715381514011,-670.43,0.00075616,120]
[326801401,1715381514020,-1135.37,0.00075616,120]
[326801402,1715381514030,-515.4,0.00075616,120]
[326801403,1715381514040,-565.96,0.00075616,120]
[326801404,1715381514049,-700.54,0.00075616,120]
[326801405,1715381514059,-571.02,0.00075616,120]
[326801406,1715381514068,-500.0,0.00075616,120]
[326801407,1715381514077,-2668.96,0.00075616,120]
[326801408,1715381514086,-500.0,0.00075616,120]
[326801409,1715381514096,-820.35,0.00075616,120]
[326801411,1715381514105,-501.21,0.00075616,120]
[326801412,1715381514115,-598.13,0.00075616,120]
[326801414,1715381514124,-967.26,0.00075616,120]
[326801415,1715381514134,-819.54,0.00075616,120]
[326801416,1715381514143,-620.58,0.00075616,120]
[326801417,1715381514152,-594.58,0.00075616,120]
[326801418,1715381514161,-819.92,0.00075616,120]
[326801419,1715381514173,-678.91,0.00075616,120]
[326801420,1715381514187,-610.7,0.00075616,120]
[326801421,1715381514200,-648.3,0.00075616,120]
[326801422,1715381514210,-873.9,0.00075616,120]
[326801423,1715381514220,-780.28,0.00075616,120]
[326801424,1715381514231,-2756.4,0.00075616,120]
[326801425,1715381514241,-1210.86,0.00075616,120]
[326801426,1715381514250,-1070.89,0.00075616,120]
[326801427,1715381514261,-1070.51,0.00075616,120]
[326801428,1715381514271,-757.61,0.00075616,120]
[326801429,1715381514281,-4210.69,0.00075616,120]
[326801430,1715381514291,-2993.37,0.00075616,120]
[326801431,1715381514300,-551.15,0.00075616,120]
[326801432,1715381514309,-733.98,0.00075616,120]
[326801433,1715381514318,-500.0,0.00075616,120]
[326801434,1715381514328,-4672.91,0.00075616,120]
[326801435,1715381514337,-1818.74,0.00075616,120]
[326801436,1715381514346,-527.33,0.00075616,120]
[326801437,1715381514355,-500.0,0.00075616,120]
[326801438,1715381514364,-500.0,0.00075616,120]
[326801439,1715381514374,-1189.78,0.00075616,120]
[326801440,1715381514383,-580.1,0.00075616,120]
[326801441,1715381514392,-837.42,0.00075616,120]
[326801442,1715381514401,-599.74,0.00075616,120]
[326801443,1715381514410,-1366.53,0.00075616,7]
[326801444,1715381514419,-635.34703132,0.00075616,120]
[326801445,1715381514429,-549.67,0.00075616,120]
[326801446,1715381514438,-9331.73,0.00075616,120]
[326801447,1715381514447,-638.03,0.00075616,120]
[326801448,1715381514457,-2272.92,0.00075616,120]
[326801449,1715381514466,-623.13,0.00075616,120]
[326801450,1715381514475,-500.0,0.00075616,120]
[326801451,1715381514485,-1021.55,0.00075616,120]
[326801452,1715381514494,-3952.33,0.00075616,120]
[326801453,1715381514503,-728.64,0.00075616,120]
[326801454,1715381514514,-7667.9,0.00075616,120]
[326801455,1715381514523,-570.68,0.00075616,120]
[326801456,1715381514534,-3673.96,0.00075616,120]
[326801457,1715381514542,-2110.2,0.00075616,120]
[326801458,1715381514553,-8336.17,0.00075616,120]
[326801459,1715381514563,-1410.23,0.00075616,120]
[326801460,1715381514572,-1154.88,0.00075616,120]
[326801461,1715381514582,-8703.16,0.00075616,120]
[326801462,1715381514591,-751.25,0.00075616,120]
[326801463,1715381514600,-536.24,0.00075616,120]
[326801464,1715381514609,-745.85,0.00075616,120]
[326801465,1715381514619,-1112.7,0.00075616,120]
[326801466,1715381514628,-3156.04,0.00075616,120]
[326801467,1715381514638,-1283.02,0.00075616,120]
[326801468,1715381514647,-1747.91,0.00075616,120]
[326801469,1715381514656,-924.27,0.00075616,120]
[326801470,1715381514666,-585.25,0.00075616,120]
[326801471,1715381514675,-790.87,0.00075616,120]
[326801472,1715381514685,-1269.11,0.00075616,120]
[326801473,1715381514694,-5883.06,0.00075616,120]
[326801474,1715381514704,-1859.96,0.00075616,120]
[326801475,1715381514713,-1701.09,0.00075616,120]
[326801476,1715381514722,-632.32,0.00075616,60]
[326801477,1715381514731,-1691.53,0.00075616,120]
[326801478,1715381514741,-592.96,0.00075616,120]
[326801479,1715381514750,-3991.97,0.00075616,120]
[326801480,1715381514761,-783.68,0.00075616,120]
[326801481,1715381514770,-4891.99,0.00075616,21]
[326801482,1715381514779,-2531.38,0.00075616,120]
[326801483,1715381514788,-500.0,0.00075616,120]
[326801484,1715381514797,-2025.54,0.00075616,120]
[326801485,1715381514807,-47405.75,0.00075616,120]
[326801486,1715381514816,-2056.13,0.00075616,120]
[326801487,1715381514825,-643.51,0.00075616,120]
[326801488,1715381514835,-906.96,0.00075616,120]
[326801489,1715381514844,-852.8,0.00075616,120]
[326801490,1715381514853,-8527.55,0.00075616,120]
[326801491,1715381514863,-972.54,0.00075616,120]
[326801492,1715381514872,-546.11,0.00075616,120]
[326801493,1715381514881,-3524.89,0.00075616,2]
[326801494,1715381514890,-1320.33,0.00075616,2]
[326801495,1715381514899,-560.85,0.00075616,120]
[326801496,1715381514908,-715.77,0.00075616,120]
[326801497,1715381514917,-728.84,0.00075616,120]
[326801498,1715381514926,-1524.6,0.00075616,120]
[326801499,1715381514935,-2617.66,0.00075616,120]
[326801500,1715381514945,-1552.09,0.00075616,120]
[326801501,1715381514954,-1408.03,0.00075616,120]
[326801502,1715381514964,-709.54,0.00075616,120]
[326801503,1715381514973,-2955.83,0.00075616,120]
[326801504,1715381514983,-511.70009456,0.00075616,120]
[326801505,1715381514992,-679.75,0.00075616,120]
[326801506,1715381515001,-525.15,0.00075616,120]
[326801507,1715381515011,-671.41,0.00075616,120]
[326801508,1715381515021,-17679.9,0.00075616,120]
[326801509,1715381515030,-249.73735156,0.00075616,120]
[326801510,1715381515040,-4314.35,0.00075616,120]
[326801511,1715381515049,-680.13,0.00075616,120]
[326801512,1715381515058,-9229.8,0.00075616,120]
[326801513,1715381515067,-990.56,0.00075616,120]
[326801514,1715381515076,-1953.0,0.00075616,120]
[326801515,1715381515086,-1273.71,0.00075616,120]
[326801516,1715381515096,-1389.39,0.00075616,120]
[326801517,1715381515105,-510.44,0.00075616,2]
[326801518,1715381515114,-300.0,0.00075616,7]